fUST/lending_fUST_20251105
["ID","MTS","AMOUNT","RATE_DAILY","PERIOD"]
[393204509,1762317225284,547.48,0.00018114,3]
[393204510,1762317226516,216.0,0.000215,4]
[393204512,1762317257580,150.86,0.00018,2]
[393204513,1762317280621,150.0,0.00017154,2]
[393204514,1762317281033,150.0,0.00017971,2]
[393204517,1762317315011,150.86,0.00018,2]
[393204518,1762317375724,150.86,0.00018,2]
[393204519,1762317435866,150.86,0.00018,2]
[393204520,1762317471250,5976.36560756,0.00017941,2]
[393204521,1762317481350,999.0,0.00017284,2]
[393204523,1762317494411,150.86,0.00018,2]
[393204524,1762317512014,2421.1146692,0.00017941,2]
[393204525,1762317553967,150.86,0.00018,2]
[393204526,1762317577458,2247.78801271,0.000179,2]
[393204527,1762317615060,150.86,0.00018,2]
[393204532,1762317674126,150.86,0.00018,2]
[393204533,1762317695786,1000.0,0.00017115,2]
[393204534,1762317696829,359.12,0.00018014,3]
[393204535,1762317702701,309.186,0.00017664,2]
[393204536,1762317707686,179.56,0.00018014,3]
[393204537,1762317714715,500.0,0.00037575,60]
[393204538,1762317714954,429.0889008,0.00037575,60]
[393204539,1762317718391,538.72,0.00018014,3]
[393204540,1762317732998,150.86,0.00018,2]
[393204542,1762317792292,2118.47533555,0.00017973,2]
[393204543,1762317793140,150.86,0.00018,2]
[393204545,1762317851563,150.86,0.00018,2]
[393204546,1762317877891,171.986061,0.00037575,30]
[393204547,1762317914470,150.86,0.00018,2]
[393204549,1762317953755,824.674981,0.00013699,2]
[393204550,1762317971952,150.86,0.00018,2]
[393204553,1762318030142,150.86,0.00018,2]
[393204554,1762318057609,829.480334,0.00017115,2]
[393204555,1762318072519,1853.66591858,0.00018,2]
[393204556,1762318087462,179.56,0.00018014,3]
[393204557,1762318090313,150.86,0.00018,2]
[393204558,1762318098047,538.68,0.00018014,3]
[393204559,1762318150030,150.85,0.00018,2]
[393204560,1762318211610,150.86,0.00018,2]
[393204605,1762318232564,-300.0,0.00018022,2]
[393204607,1762318232574,-340.22887835,0.00018022,2]
[393204726,1762318238638,-859.77112165,0.00018022,2]
[393204728,1762318238647,-205.93826893,0.00018022,2]
[393204730,1762318238656,-3575.0,0.00018023,2]
[393204732,1762318238666,-253.0,0.00018023,2]
[393204734,1762318238675,-164726.2769849,0.00018024,2]
[393204736,1762318238686,-1023.04772053,0.00018024,2]
[393204780,1762318240749,-17546.97968762,0.00018024,2]
[393205576,1762318248754,150.0,0.00015435,2]
[393205618,1762318249203,150.0,0.0001617,2]
[393205658,1762318249599,150.0,0.00016905,2]
[393205700,1762318250012,150.0,0.0001764,2]
[393206363,1762318269675,155.96,0.00018,2]
[393206365,1762318292619,359.12,0.00018014,3]
[393206366,1762318293192,300.0,0.000176,2]
[393206367,1762318302672,247.348,0.00017664,2]
[393206368,1762318303872,300.0,0.000176,2]
[393206369,1762318307927,1178.04544267,0.00017842,2]
[393206370,1762318308110,1529.40256453,0.00017835,2]
[393206371,1762318316379,150.0,0.00015342,2]
[393206372,1762318316802,150.0,0.00016073,2]
[393206373,1762318317269,150.0,0.00016803,2]
[393206374,1762318317754,150.0,0.00017534,2]
[393206375,1762318339651,152.84,0.00018,2]
[393206376,1762318383418,150.0,0.00016212,2]
[393206385,1762318399132,152.84,0.00018,2]
[393206386,1762318419067,1000.0,0.00018,2]
[393206387,1762318436022,723.19311062,0.0001798,2]
[393206388,1762318458409,152.84,0.00018,2]
[393206389,1762318474164,210.2627687,0.00037569,60]
[393206390,1762318485969,593.51931946,0.00037569,60]
[393206391,1762318519653,152.84,0.00018,2]
[393206394,1762318578235,152.84,0.00018,2]
[393206395,1762318579171,152.84,0.00018,2]
[393206396,1762318579541,152.84,0.00018,2]
[393206397,1762318579834,152.84,0.00018,2]
[393206398,1762318580341,152.84,0.00018,2]
[393206399,1762318580784,152.84,0.00018,2]
[393206400,1762318581101,152.84,0.00018,2]
[393206401,1762318581693,152.84,0.00018,2]
[393206402,1762318581974,152.84,0.00018,2]
[393206403,1762318582299,152.84,0.00018,2]
[393206404,1762318582793,152.84,0.00018,2]
[393206405,1762318583105,152.84,0.00018,2]
[393206406,1762318583492,152.84,0.00018,2]
[393206407,1762318583782,152.84,0.00018,2]
[393206408,1762318584127,152.84,0.00018,2]
[393206409,1762318584464,152.84,0.00018,2]
[393206410,1762318584778,152.84,0.00018,2]
[393206411,1762318585085,152.84,0.00018,2]
[393206412,1762318585378,152.84,0.00018,2]
[393206413,1762318585702,152.84,0.00018,2]
[393206414,1762318586098,152.84,0.00018,2]
[393206415,1762318586637,152.84,0.00018,2]
[393206416,1762318587451,152.84,0.00018,2]
[393206417,1762318587772,152.84,0.00018,2]
[393206418,1762318588079,152.84,0.00018,2]
[393206419,1762318588378,152.84,0.00018,2]
[393206420,1762318589335,152.84,0.00018,2]
[393206421,1762318589727,152.84,0.00018,2]
[393206422,1762318590072,152.84,0.00018,2]
[393206423,1762318590529,152.84,0.00018,2]
[393206424,1762318590891,152.84,0.00018,2]
[393206425,1762318591131,152.84,0.00018,2]
[393206426,1762318591417,152.84,0.00018,2]
[393206427,1762318591708,152.84,0.00018,2]
[393206428,1762318591755,12126.16865927,0.00017924,2]
[393206429,1762318600681,-183.04091796,0.00017924,2]
[393206430,1762318606731,-294.25200255,0.00017924,2]
[393206431,1762318608208,-204.41859723,0.00017924,2]
[393206432,1762318611466,-172.03165665,0.00017924,2]
[393206433,1762318613788,-256.00000003,0.00017924,2]
[393206434,1762318628340,-152.83,0.000179,2]
[393206435,1762318628375,-300.0,0.00017923,2]
[393206436,1762318628435,-8989.20314699,0.00017924,2]
[393206437,1762318628527,-10000.01,0.00017924,2]
[393206438,1762318628638,-10000.01,0.00017924,2]
[393206439,1762318628758,-10000.01,0.00017924,2]
[393206440,1762318629523,-280.49700088,0.00017924,2]
[393206441,1762318629552,-10000.01,0.00017924,2]
[393206442,1762318629647,-10000.01,0.00017924,2]
[393206443,1762318629754,-10000.01,0.00017924,2]
[393206444,1762318629849,-10000.01,0.00017924,2]
[393206445,1762318635126,217.69322268,0.00017757,2]
[393206446,1762318636398,-191.08448377,0.00017924,2]
[393206447,1762318637845,-158.31836298,0.00017924,2]
[393206448,1762318640361,-10000.01,0.00017924,2]
[393206449,1762318640486,-10000.01,0.00017924,2]
[393206450,1762318640594,-10000.01,0.00017924,2]
[393206451,1762318640660,-241.34124414,0.00017924,2]
[393206452,1762318640693,-10000.01,0.00017924,2]
[393206453,1762318640788,-10000.01,0.00017924,2]
[393206454,1762318640901,-10000.01,0.00017924,2]
[393206455,1762318641188,-10000.01,0.00017924,2]
[393206456,1762318641313,-10000.01,0.00017924,2]
[393206457,1762318644086,-245.51880397,0.00017924,2]
[393206458,1762318650142,-382.04304448,0.00017924,2]
[393206459,1762318651004,5000.0,0.00017757,2]
[393206460,1762318653087,-300.0,0.00017924,2]
[393206461,1762318654580,-232.22756673,0.00017924,2]
[393206462,1762318656219,-162.05304248,0.00017924,2]
[393206463,1762318659446,5000.0,0.00017904,2]
[393206464,1762318661248,-280.61190905,0.00017924,2]
[393206465,1762318663380,-181.54533025,0.00017924,2]
[393206466,1762318664955,-234.31441551,0.00017924,2]
[393206467,1762318666468,-158.91551623,0.00017924,2]
[393206468,1762318667451,0.01,0.00017904,2]
[393206469,1762318667474,4999.99,0.00017904,2]
[393206470,1762318669152,-260.25817174,0.00017924,2]
[393206471,1762318671155,-226.02091442,0.00017924,2]
[393206472,1762318673494,-156.23987852,0.00017924,2]
[393206473,1762318675773,5000.0,0.00017904,2]
[393206474,1762318676356,-281.18337227,0.00017924,2]
[393206475,1762318680176,-262.40238366,0.00017924,2]
[393206476,1762318681715,-300.0,0.00017924,2]
[393206477,1762318684432,0.02,0.00017904,2]
[393206478,1762318684453,4999.98,0.00017904,2]
[393206479,1762318684792,-223.00745857,0.00017923,2]
[393206480,1762318686436,-76.99254143,0.00017923,2]
[393206481,1762318686460,-119.363645,0.00017924,2]
[393206482,1762318688787,152.83,0.000179,2]
[393206483,1762318692210,4847.2,0.00017904,2]
[393206484,1762318700664,5000.0,0.00017807,2]
[393206485,1762318709052,5000.0,0.00017807,2]
[393206486,1762318723972,0.01,0.00017807,2]
[393206487,1762318731777,5000.0,0.00017807,2]
[393206488,1762318731926,223.22695243,0.00017804,2]
[393206489,1762318732625,-300.0,0.00017807,2]
[393206490,1762318738099,-171.48244664,0.00017807,2]
[393206491,1762318740291,-288.52172154,0.00017807,2]
[393206492,1762318741789,-241.48670494,0.00017807,2]
[393206493,1762318743836,-176.53220651,0.00017807,2]
[393206494,1762318745917,-341.78884226,0.00017807,2]
[393206495,1762318754494,4776.78304757,0.00017807,2]
[393206496,1762318754516,223.21695243,0.00017807,2]
[393206498,1762318776657,5000.0,0.00017807,2]
[393206500,1762318798821,4776.79304757,0.00017807,2]
[393206501,1762318798844,223.20695243,0.00017807,2]
[393206502,1762318821201,5000.0,0.00017807,2]
[393206503,1762318843408,4776.80304757,0.00017807,2]
[393206504,1762318843432,223.19695243,0.00017807,2]
[393206506,1762318844919,216.3097681,0.00017668,2]
[393206516,1762318859626,158.0,1.03e-06,2]
[393206517,1762318862836,158.0,1.03e-06,2]
[393206518,1762318866466,4855.62181123,0.00017807,2]
[393206519,1762318866738,158.0,1.03e-06,2]
[393206520,1762318869804,158.0,1.03e-06,2]
[393206521,1762318872894,158.0,1.03e-06,2]
[393206522,1762318875077,3914.88146824,0.00017807,2]
[393206523,1762318875099,1085.11853176,0.00017807,2]
[393206524,1762318875946,158.0,1.03e-06,2]
[393206525,1762318879145,158.0,1.03e-06,2]
[393206526,1762318882044,158.0,1.03e-06,2]
[393206527,1762318890557,5000.0,0.00017807,2]
[393206528,1762318898342,3393.36120007,0.00017807,2]
[393206529,1762318907175,47.53026817,0.00017807,2]
[393206530,1762318907197,4952.46973183,0.00017807,2]
[393206531,1762318914958,5000.0,0.00017807,2]
[393206532,1762318929799,2247.78801271,0.00017773,2]
[393206533,1762318930295,173.08226469,0.00017257,2]
[393206534,1762318930537,5000.0,0.00017807,2]
[393206535,1762318931003,1247.26952653,0.00017682,2]
[393206536,1762318931775,692.32905876,0.00017668,2]
[393206537,1762318935066,228.061337,0.00020652,5]
[393206538,1762318938350,639.54113731,0.00017807,2]
[393206539,1762318938372,4360.45886269,0.00017807,2]
[393206540,1762318946385,5000.0,0.00017807,2]
[393206541,1762318954314,639.55113731,0.00017807,2]
[393206542,1762318954336,4360.44886269,0.00017807,2]
[393206543,1762318977080,5000.0,0.00017807,2]
[393206544,1762318984978,639.56113731,0.00017807,2]
[393206545,1762318990682,-160.0,0.00017807,2]
[393206546,1762318992789,-313.99037641,0.00017807,2]
[393206547,1762318994354,-188.47967271,0.00017807,2]
[393206548,1762318997800,-214.60578616,0.00017807,2]
[393206549,1762319000423,-235.90704483,0.00017807,2]
[393206550,1762319000650,5000.0,0.00017807,2]
[393206551,1762319002054,-322.99010641,0.00017807,2]
[393206552,1762319004805,-220.9375987,0.00017807,2]
[393206553,1762319009223,-152.7107901,0.00017807,2]
[393206554,1762319011726,-396.21583489,0.00017807,2]
[393206555,1762319012837,250.0,0.00016656,2]
[393206556,1762319013297,-263.31477287,0.00017807,2]
[393206557,1762319014791,-270.63229729,0.00017807,2]
[393206559,1762319023521,5000.0,0.00017757,2]
[393206560,1762319046792,5000.0,0.00017757,2]
[393206561,1762319069926,5000.0,0.00017757,2]
[393206568,1762319093663,5000.0,0.00017757,2]
[393206570,1762319116626,5000.0,0.00017757,2]
[393206571,1762319140020,5000.0,0.00017757,2]
[393206572,1762319144954,276.21602598,0.00020921,5]
[393206573,1762319151578,164.00149917,0.00017244,2]
[393206574,1762319155766,216.09609302,0.00021397,5]
[393206575,1762319162606,5000.0,0.00017757,2]
[393206576,1762319170734,4360.43886269,0.00017757,2]
[393206577,1762319186609,5000.0,0.00017757,2]
[393206578,1762319209785,5000.0,0.00017757,2]
[393206579,1762319218471,151.31,0.00019,3]
[393206602,1762319232557,5000.0,0.00017757,2]
[393206610,1762319250592,205.7477954,0.00016893,2]
[393206611,1762319255562,5000.0,0.00017757,2]
[393206612,1762319277962,5000.0,0.00017757,2]
[393206613,1762319283663,173.86,0.00016234,2]
[393206614,1762319283963,173.85,0.00016234,2]
[393206615,1762319301344,5000.0,0.00017757,2]
[393206616,1762319324469,5000.0,0.00017757,2]
[393206617,1762319347323,5000.0,0.00017757,2]
[393206618,1762319370115,5000.0,0.00017757,2]
[393206619,1762319392932,5000.0,0.00017757,2]
[393206620,1762319415883,5000.0,0.00017757,2]
[393206621,1762319417407,2100.99776761,0.00017713,2]
[393206622,1762319426795,-222.75633366,0.00017573,2]
[393206640,1762319431843,-8.76395375,0.00017573,2]
[393206641,1762319431852,-146.7902451,0.00017713,2]
[393206642,1762319431861,-127.76933349,0.00017807,2]
[393206643,1762319431872,-100.23066651,0.00017807,2]
[393206644,1762319431884,-154.96933349,0.00017811,2]
[393206943,1762319440005,-58.18314372,0.00017811,2]
[393206945,1762319440015,-341.99396279,0.00017824,2]
[393206947,1762319440024,-578.55448848,0.00017873,2]
[393206949,1762319440034,-118.53161288,0.00017898,2]
[393206951,1762319440045,-181.46838712,0.00017898,2]
[393206953,1762319440054,-573.45685349,0.00017899,2]
[393206955,1762319440063,-300.0,0.00017899,2]
[393206957,1762319440072,-1200.0,0.00017899,2]
[393206959,1762319440082,-351.74713967,0.000179,2]
[393207002,1762319440484,-3e-08,0.000179,2]
[393207004,1762319440495,-8869.67579662,0.000179,2]
[393207006,1762319440506,-409.28017256,0.000179,2]
[393207008,1762319440517,-531.71,0.000179,2]
[393207583,1762319446575,-355.3,0.000179,2]
[393207585,1762319446591,-6109.19549927,0.000179,2]
[393207867,1762319478225,3069.0,0.000215,4]
[393207868,1762319520567,-222.75633366,0.00017544,2]
[393207869,1762319520598,-197.879,0.00017566,2]
[393207870,1762319520630,-222.75633366,0.00017721,2]
[393207871,1762319520658,-462.8435908,0.00017873,2]
[393207872,1762319520687,-300.0,0.00017899,2]
[393207873,1762319520717,-500.0,0.00017899,2]
[393207874,1762319520747,-500.0,0.00017899,2]
[393207875,1762319520776,-500.0,0.00017899,2]
[393207876,1762319520805,-500.0,0.00017899,2]
[393207877,1762319520831,-500.0,0.00017899,2]
[393207878,1762319520859,-500.0,0.00017899,2]
[393207879,1762319520887,-152.83,0.000179,2]
[393207880,1762319520917,-213.59380327,0.00017922,2]
[393207881,1762319521050,-500.0,0.00017922,2]
[393207882,1762319521078,-500.0,0.00017923,2]
[393207883,1762319521106,-524.39781575,0.00017923,2]
[393207884,1762319521134,-500.0,0.00017923,2]
[393207885,1762319521162,-471.58148465,0.00017923,2]
[393207886,1762319521191,-500.0,0.00017923,2]
[393207887,1762319521218,-501.69586011,0.00017923,2]
[393207888,1762319521246,-500.0,0.00017923,2]
[393207889,1762319521274,-522.15219512,0.00017923,2]
[393207890,1762319521681,-52.8163311,0.00017923,2]
[393207891,1762319521695,-522.15219512,0.00017923,2]
[393207892,1762319521709,-960.35528874,0.00017923,2]
[393207893,1762319521726,-10000.01,0.00017923,2]
[393207894,1762319521740,-10000.01,0.00017923,2]
[393207895,1762319521756,-10000.01,0.00017923,2]
[393207896,1762319521771,-9581.18647923,0.00017923,2]
[393207897,1762319521782,-418.82352077,0.00017924,2]
[393207898,1762319523483,-300.0,0.00017898,2]
[393207899,1762319523518,-9400.01,0.00017924,2]
[393207900,1762319526758,-152.62,0.000179,2]
[393207901,1762319526786,-152.62,0.000179,2]
[393207902,1762319526966,5000.0,0.000222,9]
[393207903,1762319526994,-9389.53,0.00017924,2]
[393207904,1762319527029,-10000.01,0.00017924,2]
[393207905,1762319527918,-152.62,0.000179,2]
[393207906,1762319527945,-152.62,0.000179,2]
[393207907,1762319527972,-152.62,0.000179,2]
[393207908,1762319528031,-9084.29,0.00017924,2]
[393207909,1762319528594,-152.62,0.000179,2]
[393207910,1762319528627,-152.62,0.000179,2]
[393207911,1762319528674,-9389.53,0.00017924,2]
[393207912,1762319528852,-152.62,0.000179,2]
[393207913,1762319528885,-9694.77,0.00017924,2]
[393207914,1762319530360,439.58,0.00017914,3]
[393207915,1762319541018,219.79,0.00017914,3]
[393207916,1762319549643,5000.0,0.000222,9]
[393207917,1762319551720,659.38,0.00017914,3]
[393207918,1762319557506,5000.0,0.000222,9]
[393207919,1762319573352,5000.0,0.000222,9]
[393207920,1762319581208,5000.0,0.000222,9]
[393207921,1762319581502,153.651631,0.000222,9]
[393207922,1762319597240,5000.0,0.000222,9]
[393207923,1762319605042,723.00012955,0.000222,9]
[393207924,1762319620692,5000.0,0.000222,9]
[393207925,1762319643475,5000.0,0.000222,9]
[393207926,1762319666317,1264.86866655,0.000222,9]
[393207932,1762319841784,150.0,0.000215,4]
[393207933,1762319951293,-500.01705275,0.00017636,2]
[393207934,1762319952902,-201.30505731,0.00017636,2]
[393207935,1762319954904,500.00247023,0.000222,9]
[393207936,1762319957216,-319.20792202,0.00017636,2]
[393207937,1762319958793,-371.68274988,0.00017636,2]
[393207938,1762319961518,-205.50606818,0.00017636,2]
[393207939,1762319964392,-337.97783808,0.00017636,2]
[393207940,1762319981450,-188.32803215,0.0001746,2]
[393207942,1762319983120,-360.09170909,0.0001746,2]
[393207943,1762319985780,-607.36738231,0.0001746,2]
[393207944,1762319995672,-225.9955925,0.00017285,2]
[393207945,1762319995695,-66.91410208,0.0001746,2]
[393207948,1762320094264,219.79,0.00017814,3]
[393207949,1762320105132,659.37,0.00017814,3]
[393207950,1762320250876,-212.97840984,0.00017285,2]
[393207951,1762320250899,-228.77743636,0.00017377,2]
[393207952,1762320250921,-76.60616634,0.00017468,2]
[393207953,1762320300745,200.0,0.0002,5]
[393207954,1762320311188,-81.69683366,0.00017468,2]
[393207955,1762320311211,-86.31296796,0.00017468,2]
[393207956,1762320313948,-301.43503928,0.00017468,2]
[393207958,1762320355666,-178.38631771,0.000171,2]
[393207959,1762320357815,-31.45175437,0.000171,2]
[393207960,1762320357838,-324.0608468,0.000171,2]
[393207961,1762320358134,284.7349098,0.00021183,5]
[393207965,1762320370766,-53.64768294,0.000171,2]
[393207966,1762320370789,-168.00980162,0.00017293,2]
[393207967,1762320370811,-78.34251544,0.00017293,2]
[393207968,1762320374757,-246.16279752,0.00017293,2]
[393207969,1762320377538,-159.94209765,0.00017293,2]
[393207970,1762320381905,601.43503928,0.000171,2]
[393207971,1762320405152,4546.98,0.000171,2]
[393207972,1762320412982,2836.51710834,0.000171,2]
[393207973,1762320426666,-49.45150827,0.00017293,2]
[393207974,1762320426697,-214.11835255,0.00017293,2]
[393207979,1762320437247,161.84791703,0.00021183,5]
[393207980,1762320439719,911.33310267,0.00021183,5]
[393207982,1762320506873,-723.33015948,0.00015,2]
[393207983,1762320509542,-254.96769268,0.00015,2]
[393207984,1762320511975,-566.96597113,0.00015,2]
[393208019,1762320516836,-183.30970447,0.00015,2]
[393208022,1762320518881,-265.29278669,0.00015,2]
[393208023,1762320519587,864.0,0.00021399,20]
[393208029,1762320535702,-326.80122001,0.00015,2]
[393208030,1762320538318,-217.56652542,0.00015,2]
[393208039,1762320567103,-4.12478043,0.00015,2]
[393208040,1762320567124,-224.20188763,0.00015788,2]
[393208041,1762320567143,-300.0,0.00016576,2]
[393208042,1762320567164,-12235.40855579,0.00016577,2]
[393208073,1762320632794,1050.0,0.000215,4]
[393208086,1762320637885,-999.0,0.00016277,2]
[393208088,1762320637894,-3142.93641671,0.00016411,2]
[393208090,1762320637903,-970.56358329,0.00016577,2]
[393208092,1762320637915,-2172.37283342,0.00016577,2]
[393208094,1762320637924,-202.0,0.00016577,2]
[393208096,1762320637933,-106.26017333,0.0001699,2]
[393208364,1762320640448,-3e-08,0.0001699,2]
[393209048,1762320659390,863.51998771,0.00021204,5]
[393209071,1762320697699,439.58,0.00017814,3]
[393209072,1762320704423,1719.19737534,0.00037562,120]
[393209090,1762320759845,1903.92,0.00017814,3]
[393209091,1762320760647,-266.51173075,0.0001682,2]
[393209092,1762320764723,-300.0,0.0001682,2]
[393209093,1762320766829,-169.43549047,0.0001682,2]
[393209094,1762320769073,-366.84853083,0.0001682,2]
[393209102,1762320770452,4586.7,0.00017814,3]
[393209103,1762320775308,184.381957,0.00021433,7]
[393209104,1762320775604,184.381957,0.0002097,7]
[393209105,1762320781354,2293.35,0.00017814,3]
[393209106,1762320782336,22924.0843,0.00037561,120]
[393209107,1762320792026,1146.67,0.00017814,3]
[393209108,1762320802613,573.34,0.00017814,3]
[393209112,1762320813258,286.67,0.00017814,3]
[393209113,1762320823902,860.03,0.00017814,3]
[393209116,1762320841818,179.61440701,0.0001682,2]
[393209117,1762320852031,855.479161,0.00013699,2]
[393209121,1762320864568,2383.48710834,0.0001682,2]
[393209122,1762320972381,6581.42932365,0.00016158,2]
[393209123,1762320972404,3439.78533985,0.00016158,2]
[393209124,1762320979743,5000.0,0.0001682,2]
[393209170,1762321105808,-178.63,0.00015984,2]
[393209171,1762321105831,-112.01248532,0.00015984,2]
[393209172,1762321120670,-66.61751468,0.00015984,2]
[393209173,1762321120690,-256.37462403,0.00015988,2]
[393209174,1762321124124,-300.0,0.00015988,2]
[393209175,1762321125659,-183.95186697,0.00015988,2]
[393209178,1762321129013,-190.36688303,0.00015988,2]
[393209198,1762321304149,3596.88,0.00017663,3]
[393209199,1762321314880,1798.44,0.00017663,3]
[393209200,1762321325401,899.22,0.00017663,3]
[393209201,1762321335987,449.61,0.00017663,3]
[393209202,1762321346610,224.8,0.00017663,3]
[393209203,1762321357219,674.45,0.00017663,3]
[393209204,1762321372987,159.797696,0.00021433,7]
[393209205,1762321373360,159.797696,0.0002097,7]
[393209206,1762321374715,298.15280587,0.00021488,4]
[393209207,1762321393160,1648.90698823,0.000222,9]
[393209208,1762321401038,239.036522,0.000222,9]
[393209209,1762321409620,151.0,0.000222,9]
[393209210,1762321449091,-295.27555774,0.00023,118]
[393209211,1762321449190,-1219.7855415,0.00023288,30]
[393209212,1762321449291,-1000.0,0.00028481,30]
[393209213,1762321449379,-492.0,0.00028481,30]
[393209214,1762321449459,-299.6635978,0.00028695,30]
[393209215,1762321449543,-190.8362626,0.00028695,30]
[393209216,1762321449625,-153.0,0.00028695,30]
[393209217,1762321449704,-299.6635978,0.00028695,30]
[393209218,1762321449781,-480.6827331,0.00028695,30]
[393209219,1762321449857,-190.8362626,0.00028695,30]
[393209220,1762321449935,-153.0,0.00028695,30]
[393209221,1762321450017,-190.8362626,0.00028695,30]
[393209222,1762321450094,-299.6635978,0.00028695,30]
[393209223,1762321450171,-153.0,0.00028695,30]
[393209224,1762321450244,-190.8362626,0.00028695,30]
[393209225,1762321450320,-153.0,0.00028695,30]
[393209226,1762321450396,-591.8931998,0.00028695,30]
[393209227,1762321450476,-190.8362626,0.00028695,30]
[393209228,1762321450557,-153.0,0.00028695,30]
[393209229,1762321450645,-591.8931998,0.00028695,30]
[393209230,1762321450726,-242.2570113,0.00028695,30]
[393209231,1762321450806,-591.8931998,0.00028695,30]
[393209232,1762321450885,-306.0000001,0.00028695,30]
[393209233,1762321450975,-591.8931998,0.00028695,30]
[393209234,1762321451059,-591.8931998,0.00028695,30]
[393209235,1762321451140,-445.0879876,0.00028712,30]
[393209236,1762321451223,-169.1915179,0.00028712,30]
[393209237,1762321451303,-327.5463304,0.00028712,30]
[393209238,1762321451386,-591.5954373,0.00028712,30]
[393209239,1762321451469,-591.8931998,0.00028712,30]
[393209240,1762321451552,-591.8931998,0.00028712,30]
[393209241,1762321451630,-591.8931998,0.00028712,30]
[393209242,1762321451705,-591.8931998,0.00029517,30]
[393209243,1762321451780,-507.1780929,0.00029517,30]
[393209244,1762321451862,-1000.0,0.0003133,30]
[393209245,1762321451948,-791.0,0.0003133,30]
[393209246,1762321452031,-153.366204,0.00032877,31]
[393209247,1762321452113,-362.8539945,0.0003288,120]
[393209248,1762321452195,-1000.0,0.00033425,120]
[393209249,1762321452271,-1000.0,0.00033973,120]
[393209250,1762321452351,-400.0,0.00034,120]
[393209251,1762321452427,-604.25367368,0.00034021,120]
[393209252,1762321452649,-1000.0,0.00034463,30]
[393209253,1762321452730,-1000.0,0.00034463,30]
[393209254,1762321452804,-1000.0,0.00034521,120]
[393209255,1762321452878,-185.22,0.00034912,60]
[393209256,1762321452955,-152.84,0.00034912,60]
[393209257,1762321453033,-151.0,0.00035,120]
[393209258,1762321453110,-185.23321695,0.00035012,60]
[393209259,1762321453196,-152.84,0.00035012,60]
[393209260,1762321453279,-1000.0,0.00035068,120]
[393209261,1762321453360,-152.84,0.00035112,60]
[393209262,1762321453436,-152.84,0.00035212,60]
[393209263,1762321453515,-152.84,0.00035312,60]
[393209264,1762321453593,-152.84,0.00035412,60]
[393209265,1762321453670,-152.84,0.00035512,60]
[393209266,1762321453749,-152.84,0.00035612,60]
[393209267,1762321453826,-1000.0,0.00035616,120]
[393209268,1762321453904,-152.84,0.00035712,60]
[393209269,1762321453982,-152.84,0.00035812,60]
[393209270,1762321454059,-543.20029,0.000359,120]
[393209271,1762321454141,-152.84,0.00035912,60]
[393209272,1762321454219,-31711.68308,0.00036,120]
[393209273,1762321454299,-152.84,0.00036012,60]
[393209274,1762321454382,-645.76728485,0.00036021,120]
[393209275,1762321454467,-152.84,0.00036112,60]
[393209276,1762321454552,-1000.0,0.00036164,120]
[393209277,1762321454638,-152.84,0.00036212,60]